bitfinex-derivatives/quotes_ETHF0:USTF0_20251119
["timestamp","ask_amount","ask_price","bid_price","bid_amount"]
[1763595487480,0.9104487,3019.6,3019.5,0.1461]
[1763595488287,0.1114,3019.3,3019.0,0.1494757]
[1763595489085,0.1114,3019.1,3019.0,0.1494757]
[1763595489383,4.11849383,3019.1,3019.0,0.0024757]
[1763595489983,3.3192,3019.1,3019.0,0.3897757]
[1763595490379,4.10164516,3019.5,3019.4,0.2412]
[1763595490684,4.00701559,3019.5,3019.4,0.2412]
[1763595490884,4.11841559,3019.5,3019.4,0.2412]
[1763595491279,4.11841559,3019.5,3019.0,0.1485757]
[1763595491481,3.3192,3019.5,3019.0,0.1485757]
[1763595491781,0.1114,3019.1,3019.0,0.1485757]
[1763595491988,3.2078,3019.5,3019.0,0.3897757]
[1763595492184,0.79935754,3019.4,3019.0,0.3897757]
[1763595492486,3.2078,3019.5,3019.0,0.3897757]
[1763595492683,0.79956494,3019.4,3019.0,0.3897757]
[1763595492986,3.2078,3019.5,3019.0,0.3897757]
[1763595493186,0.79956495,3019.4,3019.0,0.3897757]
[1763595493388,3.2078,3019.5,3019.0,0.3897757]
[1763595493588,0.79963523,3019.4,3019.0,0.3897757]
[1763595493885,3.2078,3019.5,3019.0,0.3897757]
[1763595494086,0.79963524,3019.4,3019.0,0.3897757]
[1763595494280,3.2078,3019.5,3019.0,0.3897757]
[1763595494488,0.7997301,3019.4,3019.0,0.3897757]
[1763595494786,3.2078,3019.5,3019.0,0.3897757]
[1763595495085,0.7997301,3019.4,3019.0,0.3897757]
[1763595495287,3.2078,3019.5,3019.0,0.3897757]
[1763595497487,3.2078,3019.5,3019.4,0.2412]
[1763595499789,3.3192,3019.5,3019.0,0.1485757]
[1763595501987,3.3192,3019.5,3019.4,0.2412]
[1763595502886,3.21151487,3019.9,3019.5,0.1461]
[1763595504293,3.32291487,3019.9,3019.8,0.2412]
[1763595504989,3.32291487,3019.9,3019.5,0.1461]
[1763595506397,0.1114,3019.6,3019.5,0.3873]
[1763595509382,0.1114,3019.6,3019.0,0.1485757]
[1763595509590,0.64792,3019.8,3019.7,0.2424]
[1763595510696,0.64792,3019.8,3019.5,0.1472]
[1763595512391,0.64792,3019.8,3019.7,0.2424]
[1763595512696,3.21151487,3019.9,3019.8,0.2403]
[1763595513096,3.32261487,3019.9,3019.8,0.2403]
[1763595514391,3.21151487,3019.9,3019.8,0.2403]
[1763595514597,0.00371487,3019.9,3019.8,3.4481]
[1763595515399,1.487e-05,3019.9,3019.8,3.4481]
[1763595517497,3.3226,3020.7,3020.6,0.2403]
[1763595517894,0.1148,3020.7,3020.6,0.2403]
[1763595518490,0.11736736,3020.7,3020.6,0.2403]
[1763595520299,0.00256736,3020.7,3020.6,0.2403]
[1763595520494,0.11736736,3020.7,3020.6,0.2403]
[1763595520693,0.00256736,3020.7,3020.6,0.2403]
[1763595521998,0.1146,3020.4,3020.3,3.2078]
[1763595523302,0.1146,3020.4,3020.3,3.4538]
[1763595523499,0.1146,3020.4,3020.3,3.2078]
[1763595523705,0.1146,3020.1,3020.0,0.3937]
[1763595525506,0.53687,3020.6,3020.0,0.3937]
[1763595525904,0.65147,3020.6,3020.5,0.1442]
[1763595526706,0.65147,3020.6,3020.0,0.1477]
[1763595527504,3.3224,3020.3,3020.2,0.246]
[1763595527701,0.1146,3020.1,3019.5,3.355]
[1763595529209,0.1146,3020.1,3020.0,0.1442]
[1763595529409,0.1146,3020.1,3020.0,0.3902]
[1763595529604,3.74472,3020.3,3020.0,0.3902]
[1763595530109,0.1146,3020.1,3020.0,0.3902]
[1763595531108,3.74472,3020.3,3020.0,0.3902]
[1763595531902,0.1146,3020.1,3020.0,0.1442]
[1763595533608,3.74472,3020.3,3020.0,0.3902]
[1763595535215,3.2078,3020.3,3020.2,0.246]
[1763595536413,3.3224,3020.3,3020.2,0.246]
[1763595537406,0.1146,3020.1,3020.0,0.1442]
[1763595537814,0.1146,3020.1,3019.5,0.1472]
[1763595538008,3.2078,3019.9,3019.5,0.1472]
[1763595541412,0.1146,3019.6,3019.5,0.3932]
[1763595541603,3.2078,3019.9,3019.5,0.3932]
[1763595542009,0.1148,3020.1,3020.0,0.3792]
[1763595542215,0.1148,3020.1,3019.5,3.355]
[1763595542511,0.1148,3019.6,3019.5,3.586]
[1763595542712,3.2078,3019.9,3019.8,0.231]
[1763595542913,3.3226,3020.3,3020.2,0.231]
[1763595543210,3.2078,3020.3,3020.2,0.231]
[1763595543418,3.3226,3020.3,3020.2,0.231]
[1763595544220,0.1148,3020.1,3020.0,0.3792]
[1763595544404,3.3226,3020.3,3020.2,0.231]
[1763595544815,3.2078,3020.3,3020.2,0.231]
[1763595546216,0.1148,3020.6,3020.5,0.1482]
[1763595546524,0.91683147,3020.6,3020.5,0.1482]
[1763595547212,0.91683147,3020.6,3020.5,0.3792]
[1763595548219,0.80203147,3020.6,3020.5,0.3792]
[1763595548516,0.00256736,3020.7,3020.6,0.231]
[1763595548716,0.1148,3020.6,3020.5,3.2078]
[1763595548918,0.1148,3020.6,3020.5,0.1482]
[1763595549122,3.21036736,3020.7,3020.6,0.231]
[1763595549424,0.1148,3020.4,3020.0,0.1482]
[1763595549622,0.1148,3020.4,3020.3,0.231]
[1763595549919,1.95653955,3021.6,3020.6,0.231]
[1763595550218,6.52433223,3024.1,3020.6,0.231]
[1763595550219,2.37989642,3024.6,3023.1,3.2078]
[1763595550517,0.2278,3023.3,3023.2,41.90072236]
[1763595550714,0.2278,3023.7,3023.6,2.89198882]
[1763595551017,0.1472,3023.0,3021.6,4.05352585]
[1763595551216,0.1472,3023.5,3022.9,1.95653955]
[1763595551424,0.1472,3023.5,3023.4,3.2078]
[1763595551425,10.06002636,3023.5,3023.4,3.2078]
[1763595551721,10.06002636,3023.5,3023.4,3.67452028]
[1763595552118,10.06002636,3023.5,3023.4,5.98229528]
[1763595552322,10.06002636,3023.5,3023.4,3.67452028]
[1763595552619,10.67372033,3023.5,3023.4,3.67452028]
[1763595552808,0.76089397,3023.5,3023.4,3.67452028]
[1763595553313,10.67372033,3023.5,3023.4,5.39782662]
[1763595553513,10.67372033,3023.5,3023.4,3.67452028]
[1763595553915,10.67372033,3023.5,3023.4,5.40006594]
[1763595554112,0.2278,3022.9,3022.8,3.2078]
[1763595554418,3.74089397,3023.5,3022.0,0.0049673]
[1763595554419,0.1472,3023.0,3022.4,3.2078]
[1763595554722,0.1472,3023.0,3022.9,3.2078]
[1763595554924,0.76089397,3023.0,3022.9,3.2078]
[1763595555519,0.38589397,3023.0,3022.9,3.2078]
[1763595555724,0.00323784,3023.7,3022.9,11.16433955]
[1763595555927,0.00323784,3023.7,3023.6,3.2078]
[1763595556223,0.23103784,3023.7,3023.6,3.2078]
[1763595556425,0.00323784,3023.7,3023.6,3.2078]
[1763595557724,0.23103784,3023.7,3023.6,3.2078]
[1763595558929,0.00323784,3023.7,3023.6,3.2078]
[1763595559626,0.2278,3023.3,3023.2,3.2078]
[1763595559815,0.1472,3023.5,3023.2,3.2078]
[1763595560017,0.38589397,3023.4,3023.2,3.2078]
[1763595560416,0.1472,3023.5,3023.2,3.2078]
[1763595561229,0.1472,3023.5,3023.3,1.95653955]
[1763595562830,0.1472,3023.5,3023.4,1.01793969]
[1763595563231,0.00323784,3023.7,3023.4,3.87511379]
[1763595563427,0.1472,3023.5,3023.4,2.8571741]
[1763595563628,0.1472,3024.0,3023.4,4.2810417]
[1763595563827,0.1472,3024.0,3023.9,3.2078]
[1763595564129,0.1472,3024.0,3023.9,4.2810417]
[1763595564325,0.1472,3024.0,3023.9,4.28035841]
[1763595564632,0.14956847,3024.0,3023.9,4.2828993]
[1763595565232,0.14956847,3024.0,3023.9,7.13377128]
[1763595565429,0.14956847,3024.0,3023.9,4.2828993]
[1763595565630,0.1472,3024.5,3023.9,4.2828993]
[1763595565833,0.61369397,3024.4,3024.3,2.27809786]
[1763595566031,0.61369397,3024.4,3024.3,1.50556095]
[1763595566234,0.61369397,3024.4,3024.3,3.78365881]
[1763595566529,1.9608,3024.0,3023.9,3.21034089]
[1763595566735,1.96415062,3024.0,3023.9,3.64336942]
[1763595566937,2.35004459,3024.0,3023.9,3.64336942]
[1763595567829,1.2451,3023.4,3023.3,2.46497801]
[1763595568025,1.2451,3023.4,3023.0,0.7472]
[1763595568026,4.4529,3023.4,3023.0,0.7472]
[1763595568628,3.2078,3023.4,3023.3,1.2807]
[1763595568829,3.2078,3023.4,3023.3,1.28403376]
[1763595570137,1.2451,3023.1,3023.0,0.0049673]
[1763595570833,7.2451,3023.1,3023.0,0.0049673]
[1763595571135,7.2451,3023.1,3023.0,0.00784765]
[1763595571331,1.2451,3023.1,3023.0,0.00784765]
[1763595574244,0.7921,3023.0,3022.2,3.2078]
[1763595574545,3.2078,3022.7,3022.2,3.2078]
[1763595574736,2.99248656,3022.7,3022.2,3.2078]
[1763595575041,2.99248656,3022.7,3022.0,0.5205]
[1763595575242,2.99248656,3022.7,3022.0,0.52976595]
[1763595575939,1.3756,3022.1,3022.0,0.00926595]
[1763595576139,1.3756,3021.8,3021.0,3.955]
[1763595576340,3.2078,3021.7,3021.0,3.955]
[1763595576536,1.3756,3021.6,3021.5,2.29877422]
[1763595576743,1.3756,3021.6,3021.5,1.72409471]
[1763595576935,1.3756,3021.4,3021.3,1.72409471]
[1763595577136,1.3756,3021.1,3021.0,3.2127673]
[1763595577441,1.3756,3021.1,3021.0,0.00730192]
[1763595578536,3.2078,3021.2,3021.0,2.61394816]
[1763595578743,3.2078,3021.2,3021.1,0.87939395]
[1763595578942,3.2078,3021.2,3021.1,3.98954624]
[1763595579145,3.2078,3021.2,3021.1,2.26229395]
[1763595579841,3.2078,3021.2,3021.1,2.66210948]
[1763595580147,0.00265105,3021.6,3021.5,2.224]
[1763595580348,0.00265105,3021.6,3021.5,3.50320948]
[1763595582847,0.00265105,3021.6,3021.5,6.71100948]
[1763595583050,0.00265105,3021.6,3021.5,9.01463837]
[1763595583346,0.0049673,3021.7,3021.6,1.3829]
[1763595583547,3.2078,3022.0,3021.9,1.3829]
[1763595583852,4.5834,3022.0,3021.9,1.27920948]
[1763595584246,4.5834,3022.0,3021.9,3.00551694]
[1763595584447,4.58647357,3022.0,3021.9,3.00551694]
[1763595586158,3.21087357,3022.0,3021.9,3.00551694]
[1763595586454,3.21087357,3022.0,3021.9,4.38841694]
[1763595586652,0.00307357,3022.0,3021.9,2.66210948]
[1763595586955,0.00307357,3022.0,3021.9,5.86990948]
[1763595587360,0.0049673,3022.3,3022.2,1.3829]
[1763595587654,0.0049673,3022.3,3022.2,4.96231688]
[1763595588457,0.00862088,3022.3,3022.2,4.96231688]
[1763595590649,0.00862088,3022.3,3022.2,2.66210948]
[1763595590854,0.00862088,3022.3,3022.2,4.96267706]
[1763595591159,0.00862088,3022.3,3022.2,2.66210948]
[1763595591359,3.2078,3022.9,3022.8,1.3829]
[1763595591654,4.5834,3022.9,3022.8,2.66210948]
[1763595591958,4.5834,3022.9,3022.8,3.00499818]
[1763595592158,4.5834,3022.9,3022.8,1.27920948]
[1763595592353,4.58637298,3022.9,3022.8,3.00561247]
[1763595592961,4.58637298,3022.9,3022.8,3.00581059]
[1763595593155,4.58637298,3022.9,3022.8,1.27920948]
[1763595593955,10.58637298,3022.9,3022.8,2.14308102]
[1763595594159,10.58637298,3022.9,3022.8,1.27920948]
[1763595594362,11.12283298,3022.9,3022.8,1.27920948]
[1763595594660,11.12283298,3022.9,3022.8,6.34e-06]
[1763595594856,0.8057,3022.7,3022.5,1.1564845]
[1763595595159,0.8007,3022.4,3022.3,1.1515172]
[1763595595458,0.8007,3022.2,3022.1,1.72660111]
[1763595596154,0.8007,3022.2,3021.8,0.0049673]
[1763595596359,0.8007,3022.2,3022.1,1.73210822]
[1763595597257,0.8007,3022.1,3022.0,1.73210822]
[1763595599163,0.8007,3021.9,3021.8,1.73707552]
[1763595599360,4.0085,3021.9,3021.8,1.16192173]
[1763595602667,4.0085,3021.9,3021.8,0.0049673]
[1763595604069,4.0085,3021.9,3021.8,1.16192173]
[1763595604267,3.2078,3021.9,3021.8,2.54482173]
[1763595604571,3.2078,3021.9,3021.8,1.3878673]
[1763595606573,3.2078,3021.9,3021.8,2.62075317]
[1763595606869,3.7555,3021.9,3021.8,2.97442674]
[1763595607072,3.7555,3021.9,3021.8,1.23785317]
[1763595607273,3.2078,3021.9,3021.8,2.56035317]
[1763595607472,0.5365,3022.7,3022.0,0.7902]
[1763595607473,3.2078,3022.3,3022.0,0.7902]
[1763595607770,3.2078,3022.3,3022.2,1.3225]
[1763595607966,3.2078,3022.7,3022.6,1.3225]
[1763595608173,3.2078,3022.7,3022.6,3.71266185]
[1763595608364,3.7555,3022.7,3022.6,3.71266185]
[1763595608772,3.7555,3022.7,3022.6,2.39016185]
[1763595610071,10.29199,3022.7,3022.6,1.07184836]
[1763595610270,10.29199,3022.7,3022.6,4.836e-05]
[1763595610467,9.2078,3022.7,3021.8,0.0049673]
[1763595610774,3.2078,3021.9,3021.8,0.0049673]
[1763595613468,0.53667,3021.7,3021.4,1.15944981]
[1763595613673,3.2078,3021.5,3021.4,1.15944981]
[1763595614574,3.2078,3021.5,3021.1,1.74088127]
[1763595615977,0.53676,3021.2,3021.1,0.0049673]
[1763595616173,5.42077418,3021.5,3020.0,0.7902]
[1763595616378,0.537,3019.9,3019.1,3.2078]
[1763595616568,3.2078,3019.7,3019.1,3.2078]
[1763595616873,0.5371,3019.3,3019.0,0.7902]
[1763595617076,3.2078,3019.1,3019.0,0.7902]
[1763595617273,3.21072068,3019.1,3019.0,0.79348457]
[1763595618275,3.74785068,3019.1,3019.0,0.00328457]
[1763595618467,9.74785068,3019.1,3019.0,0.00328457]
[1763595619073,3.74785068,3019.1,3019.0,0.00328457]
[1763595619780,4.88585068,3019.1,3019.0,0.00328457]
[1763595621072,13.00985068,3019.1,3019.0,0.00328457]
[1763595621481,13.01185068,3019.1,3019.0,0.00328457]
[1763595621679,9.74785068,3019.1,3019.0,0.00328457]
[1763595621875,12.02485068,3019.1,3019.0,0.00328457]
[1763595622080,7.01185068,3019.1,3019.0,0.00328457]
[1763595622883,13.01185068,3019.1,3019.0,0.00328457]
[1763595623083,0.53719,3018.8,3018.7,0.0049673]
[1763595623285,2.75016418,3018.8,3018.7,0.0049673]
[1763595623985,4.31216418,3018.8,3018.7,0.00870637]
[1763595624384,10.31216418,3018.8,3018.7,0.00870637]
[1763595624784,3.80119,3018.8,3018.7,0.00870637]
[1763595625084,0.53719,3018.8,3018.7,0.00870637]
[1763595625277,1.67319,3018.8,3018.7,0.00870637]
[1763595626879,3.80019,3018.8,3018.7,0.00870637]
[1763595627484,0.53719,3018.8,3018.7,0.00870637]
[1763595628083,1.67319,3018.8,3018.7,0.00530637]
[1763595628482,0.53719,3018.8,3018.7,0.00530637]
[1763595628785,2.09419,3018.8,3018.7,0.00530637]
[1763595629484,3.2078,3018.3,3017.0,0.7902]
[1763595629683,3.2078,3017.1,3017.0,0.7902]
[1763595629888,6.0868,3017.1,3017.0,0.38839416]
[1763595630383,3.2078,3017.1,3017.0,1.14320116]
[1763595630686,4.3438,3017.1,3017.0,1.14320116]
[1763595631189,6.4708,3017.1,3017.0,1.14320116]
[1763595631392,3.2078,3017.1,3017.0,1.14320116]
[1763595631586,3.2078,3017.1,3017.0,1.14271811]
[1763595631891,1.132,3017.9,3017.5,0.7494]
[1763595632092,3.2078,3018.1,3018.0,0.7494]
[1763595632385,3.74511,3018.1,3017.5,0.7494]
[1763595632589,3.2078,3017.6,3017.5,1.9635]
[1763595632788,3.2078,3017.6,3017.5,2.35118377]
[1763595633579,3.2078,3018.6,3018.5,0.7494]
[1763595633799,3.2078,3018.6,3018.5,2.35118377]
[1763595634287,3.2078,3019.2,3018.5,8.35118377]
[1763595634492,3.2078,3019.2,3019.0,1.2141]
[1763595634791,3.2078,3019.2,3019.0,1.60178377]
[1763595636585,3.2078,3019.2,3019.0,0.38768377]
[1763595636793,3.2078,3019.2,3019.0,1.60178377]
[1763595638685,0.53704,3019.6,3019.5,1.2141]
[1763595638686,3.2078,3019.6,3019.5,1.2141]
[1763595638886,3.2078,3019.6,3019.5,2.35118377]
[1763595639292,0.53693,3020.3,3019.9,1.2141]
[1763595639293,3.2078,3020.0,3019.9,1.2141]
[1763595639492,3.2078,3020.0,3019.9,1.60178377]
[1763595639687,3.21123652,3020.0,3019.9,1.60599967]
[1763595640095,3.21123652,3020.0,3019.9,0.39189967]
[1763595641894,3.74820652,3020.0,3019.9,0.25363403]
[1763595643294,3.74820652,3020.0,3019.9,1.46773403]
[1763595643694,3.21123652,3020.0,3019.9,1.46773403]
[1763595644292,3.21123652,3020.0,3019.9,0.25363403]
[1763595644592,3.21123652,3020.0,3019.0,2.30107335]
[1763595644593,0.53715,3019.0,3018.6,1.15472829]
[1763595644790,3.2078,3019.3,3019.2,1.2141]
[1763595645594,3.2078,3019.3,3019.0,0.7494]
[1763595646091,3.2078,3019.3,3019.0,0.75222032]
[1763595648694,0.53707,3019.5,3019.0,3.96002032]
[1763595649691,3.2078,3019.8,3019.5,0.7494]
[1763595650090,3.2078,3019.8,3019.7,1.2141]
[1763595652094,3.2078,3019.8,3019.5,0.7494]
[1763595654400,3.2078,3019.8,3019.7,1.2141]
[1763595654699,3.2078,3019.8,3019.5,0.7494]
[1763595655192,3.2078,3019.8,3019.2,0.8668364]
[1763595655193,0.53707,3019.5,3019.2,0.8668364]
[1763595655392,3.2078,3019.3,3019.2,1.2141]
[1763595657195,3.2078,3019.3,3019.1,0.8668364]
[1763595657401,3.2078,3019.3,3019.0,1.61905672]
[1763595658004,3.2078,3019.3,3019.0,0.75222032]
[1763595658798,3.2078,3019.3,3019.2,1.2141]
[1763595660607,3.74491,3019.3,3019.1,0.8668364]
[1763595660806,0.53713,3019.1,3019.0,0.86965672]
[1763595661108,0.53719,3018.8,3018.7,0.0049673]
[1763595661305,6.85722232,3018.8,3018.1,0.8668364]
[1763595661511,0.53731,3018.1,3018.0,0.7494]
[1763595661809,0.53731,3018.1,3017.7,0.8668364]
[1763595662108,0.53731,3018.1,3017.7,0.86998181]
[1763595662308,0.53731,3018.1,3018.0,0.6882]
[1763595663007,0.53731,3018.1,3018.0,1.8446]
[1763595663207,0.53731,3018.1,3018.0,0.6882]
[1763595663404,0.53736,3017.8,3017.7,0.87494911]
[1763595663606,5.70664889,3017.8,3017.7,0.00811271]
[1763595664611,0.53744,3017.4,3017.0,0.7494]
[1763595664905,3.2078,3017.1,3017.0,0.7494]
[1763595665316,3.2078,3017.1,3017.0,1.9058]
[1763595665495,3.2078,3017.1,3017.0,1.90819254]
[1763595669210,3.2078,3017.1,3017.0,0.75179254]
[1763595669715,3.2078,3017.1,3017.0,1.90819254]
[1763595670506,3.2078,3017.6,3017.5,1.8446]
[1763595670707,3.2078,3017.6,3017.5,0.6882]
[1763595671105,3.7452,3017.6,3017.5,0.6882]
[1763595671306,3.7452,3017.6,3017.0,0.75179254]
[1763595671507,1.95742232,3017.5,3017.0,0.75179254]
[1763595671911,1.95742232,3017.1,3017.0,0.00239254]
[1763595672206,2.49491232,3017.1,3017.0,0.00239254]
[1763595673406,2.49491232,3017.1,3017.0,0.69059254]
[1763595673801,2.49491232,3017.1,3017.0,0.00239254]
[1763595675011,2.49491232,3017.1,3015.3,3.2078]
[1763595675012,0.53768,3016.1,3015.3,3.2078]
[1763595675310,1.95742232,3015.6,3015.3,3.2078]
[1763595676106,1.96004494,3015.6,3015.3,3.21056786]
[1763595676814,1.96004494,3015.6,3015.5,0.6882]
[1763595678015,0.00262262,3015.6,3015.5,1.8446]
[1763595678206,3.2078,3016.2,3015.5,1.8446]
[1763595678207,3.2078,3016.2,3016.1,1.1564]
[1763595679210,0.00272154,3016.2,3016.1,4.3642]
[1763595679706,0.0049673,3016.5,3016.4,1.1564]
[1763595680714,0.00847136,3016.5,3016.4,1.1564]
[1763595681410,0.00847136,3016.5,3016.0,0.6882]
[1763595681715,1.95742232,3016.2,3016.0,0.6882]
[1763595682411,1.95742232,3016.2,3016.1,1.1564]
[1763595682616,1.95742232,3016.2,3016.0,0.6882]
[1763595682912,1.95742232,3016.2,3016.1,1.1564]
[1763595683120,0.00847136,3016.5,3016.4,1.1564]
[1763595683511,0.00847136,3016.5,3016.1,3.2078]
[1763595685115,1.95742232,3016.3,3016.1,3.2078]
[1763595685910,3.2078,3016.2,3016.0,0.6882]
[1763595686213,3.2078,3016.2,3015.7,3.2078]
[1763595686214,0.53769,3016.0,3015.7,3.2078]
[1763595686412,1.95742232,3015.8,3015.7,3.2078]
[1763595687220,1.95742232,3015.8,3015.7,4.2498]
[1763595688306,1.95742232,3015.8,3015.7,3.2078]
[1763595689022,1.95742232,3015.8,3015.7,4.2498]
[1763595689215,0.53769,3016.0,3015.9,1.042]
[1763595689624,0.53771,3015.9,3015.7,3.2078]
[1763595689914,0.53771,3015.9,3015.7,4.2498]
[1763595689915,1.95742232,3015.8,3015.7,4.2498]
[1763595690320,0.00847136,3016.5,3016.1,1.042]
[1763595690517,3.2078,3016.2,3016.0,0.6412]
[1763595691109,3.2078,3016.2,3016.1,1.042]
[1763595698227,3.2078,3016.2,3016.1,1.91340486]
[1763595698824,2.49503232,3016.4,3016.1,1.91340486]
[1763595699329,2.49503232,3016.4,3016.3,1.042]
[1763595700929,0.00847136,3016.5,3016.3,1.042]
[1763595700930,0.00847136,3016.5,3016.4,1.1549]
[1763595701821,3.2078,3016.7,3016.4,1.1549]
[1763595701822,3.2078,3017.1,3016.6,1.1549]
[1763595702023,3.2078,3017.6,3017.5,1.8509]
[1763595702226,3.2078,3018.0,3017.9,1.1549]
[1763595702927,0.00394142,3018.0,3017.9,4.36643783]
[1763595703324,0.00394142,3018.0,3017.9,5.23746332]
[1763595703823,0.0049673,3018.3,3018.2,1.1549]
[1763595704425,0.0049673,3018.3,3018.2,2.02539174]
[1763595704931,0.00771732,3018.3,3018.2,2.02539174]
[1763595705134,5.16522232,3018.8,3018.7,1.1549]
[1763595705428,5.16522232,3018.8,3018.5,0.696]
[1763595705429,1.0914,3018.6,3018.5,0.696]
[1763595706029,5.16522232,3018.8,3018.5,0.696]
[1763595706233,0.00387898,3018.6,3018.5,0.696]
[1763595706531,0.00387898,3018.6,3018.5,1.8509]
[1763595707735,0.00387898,3018.6,3018.5,5.0587]
[1763595711039,1.09527898,3018.6,3018.5,0.696]
[1763595711239,1.09527898,3018.6,3018.1,3.2078]
[1763595711441,1.95742232,3018.3,3018.2,1.1549]
[1763595713739,0.00387898,3018.6,3018.5,1.8509]
[1763595715138,1.09527898,3018.6,3018.5,0.696]
[1763595715639,1.09527898,3018.6,3018.0,0.696]
[1763595716535,1.0914,3018.1,3018.0,0.696]
[1763595716845,2.22005076,3018.5,3018.0,1.8509]
[1763595717540,2.75729076,3018.5,3018.0,1.8509]
[1763595719437,2.75729076,3018.5,3018.4,1.1549]
[1763595719632,3.84869076,3018.5,3018.4,1.1549]
[1763595719834,3.84869076,3018.5,3018.0,0.696]
[1763595720245,2.75729076,3018.5,3018.4,1.1549]
[1763595720630,2.75729076,3018.5,3018.0,0.696]
[1763595720631,0.00387898,3018.6,3018.5,1.8509]
[1763595721035,1.09527898,3018.6,3018.1,3.2078]
[1763595721240,1.0914,3018.2,3018.1,3.2078]
[1763595721434,1.0914,3018.2,3018.1,1.1549]
[1763595721830,0.54109898,3018.6,3018.1,1.1549]
[1763595722839,0.54109898,3018.6,3018.5,1.6323]
[1763595723038,1.33219898,3018.6,3018.5,1.6323]
[1763595723336,1.33219898,3018.6,3018.5,0.6252]
[1763595723939,1.33219898,3018.6,3018.0,0.696]
[1763595725438,1.33219898,3018.6,3018.5,0.6252]
[1763595726544,0.54109898,3018.6,3018.5,1.6323]
[1763595727842,0.00387898,3018.6,3018.5,1.6323]
[1763595730344,0.0049673,3018.9,3018.8,1.0071]
[1763595730850,0.0049673,3018.9,3018.8,1.87814892]
[1763595731042,3.2078,3019.3,3019.2,1.0071]
[1763595731458,3.21144101,3019.3,3019.2,2.16775565]
[1763595732547,3.21144101,3019.3,3019.2,1.0071]
[1763595732750,0.7961,3019.2,3019.1,1.16065565]
[1763595733253,0.7961,3019.2,3019.1,2.16775565]
[1763595733751,3.74854101,3019.3,3019.2,1.0071]
[1763595735653,4.54464101,3019.3,3019.2,1.0071]
[1763595736545,0.7961,3019.2,3019.1,0.87199584]
[1763595736851,3.74854101,3019.3,3019.1,1.87909584]
[1763595737051,3.74854101,3019.3,3019.2,1.0071]
[1763595737649,0.00364101,3019.3,3019.2,1.0071]
[1763595738444,0.7961,3019.2,3019.1,0.87104641]
[1763595738645,0.7961,3019.1,3019.0,1.49624641]
[1763595739851,0.00364101,3019.3,3019.2,1.0071]
[1763595741949,0.00364101,3019.3,3019.2,1.87814641]
[1763595742149,0.00364101,3019.3,3019.2,1.0071]
[1763595742360,0.00364101,3019.3,3019.2,1.87814641]
[1763595744056,0.00364101,3019.3,3019.2,1.0071]
[1763595744858,0.79974101,3019.3,3019.2,1.8773892]
[1763595745054,0.7961,3019.2,3019.0,1.4954892]
[1763595745258,0.7961,3019.1,3019.0,1.4954892]
[1763595745459,0.00364101,3019.3,3019.0,2.5025892]
[1763595745758,0.00364101,3019.3,3019.2,1.0071]
[1763595748653,0.79974101,3019.3,3019.2,1.0071]
[1763595748855,0.00364101,3019.3,3019.2,1.0071]
[1763595752259,0.00364101,3019.3,3019.2,1.8773892]
[1763595752766,0.0049673,3019.6,3019.5,1.5416]
[1763595753065,1.0332073,3019.6,3019.5,1.5416]
[1763595753568,1.0332073,3019.6,3019.5,0.5679]
[1763595753759,1.03645324,3019.6,3019.5,0.5679]
[1763595753957,0.53708,3019.4,3019.2,0.0049673]
[1763595754158,1.0283,3019.3,3019.2,0.0049673]
[1763595754362,4.2361,3019.3,3019.2,0.0049673]
[1763595756460,0.4912,3018.7,3018.6,0.87208988]
[1763595756660,0.4912,3018.6,3018.5,3.833]
[1763595757865,2.22005076,3018.7,3018.6,0.9459]
[1763595758064,2.71125076,3018.7,3018.6,0.9459]
[1763595758263,3.24845076,3018.7,3018.6,0.9459]
[1763595758461,0.4912,3018.6,3018.5,1.5711]
[1763595758761,2.75725076,3018.7,3018.5,1.5711]
[1763595759164,0.4912,3018.6,3018.5,1.5711]
[1763595760072,2.75725076,3018.7,3018.6,0.9459]
[1763595760774,3.24845076,3018.7,3018.6,0.9459]
[1763595761373,2.75725076,3018.7,3018.6,0.9459]
[1763595762372,0.4912,3018.6,3018.5,0.6252]
[1763595762776,0.4912,3018.3,3018.2,0.87705718]
[1763595762971,0.09306327,3018.3,3018.2,0.9508673]
[1763595763377,2.22005076,3018.7,3018.2,0.9508673]
[1763595763876,2.75726076,3018.7,3018.6,0.9459]
[1763595764069,2.85036076,3018.7,3018.6,0.9459]
[1763595764265,0.63032,3018.6,3018.5,0.5679]
[1763595765677,0.0931,3018.3,3018.2,0.0049673]
[1763595765971,3.3009,3018.3,3018.2,0.0049673]
[1763595766873,3.3009,3018.3,3018.2,0.9508673]
[1763595767074,3.3009,3018.3,3018.2,0.0049673]
[1763595767581,3.83817,3018.3,3018.2,0.0049673]
[1763595770383,2.31315076,3018.6,3018.5,1.5138]
[1763595770584,2.85037076,3018.6,3018.5,0.5679]
[1763595770789,0.0931,3018.3,3018.2,0.0049673]
[1763595771382,0.63037,3018.3,3018.2,0.0049673]
[1763595772384,0.53727,3018.3,3018.2,0.9508673]
[1763595773886,0.63037,3018.3,3018.2,0.9508673]
[1763595775087,3.83817,3018.3,3018.2,0.9508673]
[1763595775484,3.83817,3018.3,3018.2,0.0049673]
[1763595776183,3.83817,3018.3,3018.2,0.9508673]
[1763595776491,3.83817,3018.3,3018.2,0.0049673]
[1763595776991,0.0931,3018.0,3017.9,0.00373783]
[1763595777288,0.63043,3018.0,3017.9,0.94963783]
[1763595778083,0.53733,3018.0,3017.9,0.94963783]
[1763595778384,1.32643,3018.0,3017.9,0.94963783]
[1763595780192,0.53733,3018.0,3017.9,0.94963783]
[1763595780990,3.15085992,3018.0,3017.9,0.94963783]
[1763595781190,3.93995992,3018.0,3017.9,0.00373783]
[1763595781689,3.93995992,3018.0,3017.9,0.94963783]
[1763595782084,1.11218,3017.7,3017.6,0.0049673]
[1763595782288,0.8822,3017.1,3017.0,1.72855565]
[1763595782489,6.8427745,3017.1,3017.0,0.5679]
[1763595782787,6.8427745,3017.1,3016.5,0.5679]
[1763595782788,0.7445,3016.6,3016.5,0.5679]
[1763595782991,4.48988,3016.6,3016.1,1.16065565]
[1763595783188,3.2078,3016.2,3016.1,0.82845194]
[1763595783386,5.17011519,3016.2,3016.1,0.82845194]
[1763595786393,5.71088954,3016.6,3016.5,1.3137]